fUST/lending_fUST_20240610
["ID","MTS","AMOUNT","RATE_DAILY","PERIOD"]
[328885406,1717957848024,-820.34471934,0.00019178,2]
[328885407,1717957848033,-820.34471934,0.00019178,2]
[328885409,1717957848043,-820.34471934,0.00019178,2]
[328885411,1717957848053,-820.34471934,0.00019178,2]
[328885413,1717957848063,-820.34471934,0.00019178,2]
[328885415,1717957848073,-450.31345144,0.00019178,2]
[328885417,1717957848082,-820.34471934,0.00019178,2]
[328885419,1717957848091,-820.34471934,0.00019178,2]
[328885421,1717957848101,-820.34471934,0.00019178,2]
[328885423,1717957848110,-820.34471934,0.00019178,2]
[328885425,1717957848120,-820.34471934,0.00019178,2]
[328885427,1717957848131,-820.34471934,0.00019178,2]
[328885430,1717957848141,-820.34471934,0.00019178,2]
[328885433,1717957848151,-820.34471934,0.00019178,2]
[328885436,1717957848161,-820.34471934,0.00019178,2]
[328885440,1717957848172,-816.02711555,0.00019178,2]
[328885444,1717957848181,-816.02711555,0.00019178,2]
[328885448,1717957848191,-816.02711555,0.00019178,2]
[328885453,1717957848202,-816.02711555,0.00019178,2]
[328885457,1717957848212,-816.02711555,0.00019178,2]
[328885460,1717957848224,-816.02711555,0.00019178,2]
[328885463,1717957848236,-816.02711555,0.00019178,2]
[328885465,1717957848246,-816.02711555,0.00019178,2]
[328885468,1717957848256,-816.02711555,0.00019178,2]
[328885470,1717957848267,-816.02711555,0.00019178,2]
[328885472,1717957848277,-816.02711555,0.00019178,2]
[328885474,1717957848287,-816.02711555,0.00019178,2]
[328885476,1717957848298,-816.02711555,0.00019178,2]
[328885478,1717957848308,-816.02711555,0.00019178,2]
[328885480,1717957848319,-816.02711555,0.00019178,2]
[328885482,1717957848329,-816.02711555,0.00019178,2]
[328885484,1717957848339,-816.02711555,0.00019178,2]
[328885486,1717957848349,-816.02711555,0.00019178,2]
[328885488,1717957848359,-816.02711555,0.00019178,2]
[328885490,1717957848369,-816.02711555,0.00019178,2]
[328885492,1717957848379,-816.02711555,0.00019178,2]
[328885494,1717957848389,-816.02711555,0.00019178,2]
[328885496,1717957848399,-816.02711555,0.00019178,2]
[328885498,1717957848410,-811.82697599,0.00019178,2]
[328885500,1717957848420,-811.82697599,0.00019178,2]
[328885502,1717957848430,-811.82697599,0.00019178,2]
[328885503,1717957848440,-811.82697599,0.00019178,2]
[328885504,1717957848451,-811.82697599,0.00019178,2]
[328885505,1717957848461,-811.82697599,0.00019178,2]
[328885506,1717957848471,-811.82697599,0.00019178,2]
[328885507,1717957848481,-811.82697599,0.00019178,2]
[328885508,1717957848491,-811.82697599,0.00019178,2]
[328885509,1717957848501,-811.82697599,0.00019178,2]
[328885510,1717957848512,-811.82697599,0.00019178,2]
[328885511,1717957848522,-811.82697599,0.00019178,2]
[328885512,1717957848532,-811.82697599,0.00019178,2]
[328885513,1717957848542,-811.82697599,0.00019178,2]
[328885514,1717957848552,-481.66278017,0.00019178,2]
[328885515,1717957848562,-765.43686306,0.00019178,2]
[328885517,1717957848572,-765.43686306,0.00019178,2]
[328885519,1717957848582,-765.43686306,0.00019178,2]
[328885520,1717957848592,-500.0,0.00019178,2]
[328885522,1717957848602,-502.52249865,0.00019178,2]
[328885524,1717957848613,-287.62885566,0.00019178,2]
[328885525,1717957848623,-500.0,0.00019178,2]
[328885526,1717957848635,-500.0,0.00019178,2]
[328885527,1717957848646,-500.0,0.00019178,2]
[328885528,1717957848658,-500.0,0.00019178,2]
[328885529,1717957848668,-400.41977527,0.00019178,2]
[328885530,1717957848680,-500.0,0.00019178,2]
[328885531,1717957848690,-173.8711457,0.00019178,2]
[328885532,1717957848699,-199.449235,0.00019178,2]
[328885533,1717957848709,-240.84026,0.00019178,2]
[328885534,1717957848718,-500.0,0.00019286,2]
[328885535,1717957848728,-500.0,0.00019287,2]
[328885536,1717957848739,-3204.71,0.00019287,2]
[328885537,1717957848749,-500.0,0.00019287,2]
[328885538,1717957848759,-1415.27,0.00019287,2]
[328885540,1717957848769,-1103.301613,0.000195,2]
[328885542,1717957848779,-510.73,0.0001956,2]
[328885544,1717957848789,-500.0,0.00019561,2]
[328885545,1717957848799,-3204.71,0.00019561,2]
[328885547,1717957848809,-212.77,0.00019561,2]
[328885549,1717957848819,-1415.27,0.00019561,2]
[328885551,1717957848831,-253.8,0.00019728,3]
[328885553,1717957848840,-500.0,0.00019835,2]
[328885555,1717957848850,-3204.71,0.00019835,2]
[328885557,1717957848860,-151.0,0.00019835,2]
[328885558,1717957848870,-1415.27,0.00019835,2]
[328885560,1717957848881,-151.0,0.00019835,2]
[328885562,1717957848891,-187.125786,0.00019835,2]
[328885563,1717957848901,-187.125786,0.00019835,2]
[328885564,1717957848911,-151.0,0.00019835,2]
[328885565,1717957848920,-151.0,0.00019835,2]
[328885566,1717957848930,-500.0,0.00019999,2]
[328885567,1717957848940,-502.90411986,0.00019999,2]
[328885568,1717957848950,-551.53493397,0.00019999,2]
[328885569,1717957848960,-626.0,0.00019999,2]
[328885570,1717957848970,-500.0,0.00019999,2]
[328885572,1717957848981,-503.22336061,0.00019999,2]
[328885574,1717957848991,-539.86203041,0.0002,2]
[328885576,1717957849001,-287.31807298,0.0002,2]
[328885578,1717957849011,-160.0,0.0002,2]
[328885580,1717957849020,-302.0,0.0002,2]
[328885581,1717957849030,-160.0,0.0002,2]
[328885583,1717957849040,-151.0,0.0002,2]
[328885584,1717957849049,-151.0,0.0002,2]
[328885585,1717957849059,-151.0,0.0002,2]
[328885586,1717957849069,-151.0,0.0002,2]
[328885587,1717957849078,-151.0,0.0002,2]
[328885588,1717957849088,-171.678656,0.0002,2]
[328885589,1717957849098,-151.0,0.0002,2]
[328885590,1717957849107,-151.0,0.0002,2]
[328885591,1717957849116,-151.0,0.0002,2]
[328885592,1717957849125,-151.0,0.0002,2]
[328885593,1717957849136,-1455.8319284,0.0002,3]
[328885594,1717957849145,-932.35426985,0.0002,2]
[328885595,1717957849154,-435.0,0.0002,2]
[328885596,1717957849164,-18235.16122224,0.0002,2]
[328885597,1717957849173,-1000.0,0.0002,2]
[328885598,1717957849183,-151.0,0.0002,2]
[328885599,1717957849192,-151.0,0.0002,2]
[328885600,1717957849201,-153.0,0.00020027,2]
[328885601,1717957849210,-154.018,0.00020089,2]
[328885604,1717957849318,-500.0,0.00020109,2]
[328885606,1717957849328,-3204.71,0.00020109,2]
[328885608,1717957849338,-1415.27,0.00020109,2]
[328885610,1717957849349,-500.0,0.00020273,2]
[328885612,1717957849359,-500.0,0.00020383,2]
[328885614,1717957849369,-3204.71,0.00020383,2]
[328885616,1717957849381,-151.0,0.00020383,2]
[328885618,1717957849391,-1415.27,0.00020383,2]
[328885620,1717957849400,-151.0,0.00020383,2]
[328885622,1717957849411,-187.125786,0.00020383,2]
[328885624,1717957849422,-187.125786,0.00020383,2]
[328885626,1717957849432,-153.7778775,0.00020411,2]
[328885628,1717957849443,-165.7922676,0.00020411,2]
[328885630,1717957849454,-153.0,0.00020411,2]
[328885632,1717957849463,-153.0,0.00020411,2]
[328885634,1717957849473,-151.0,0.00020545,2]
[328885636,1717957849483,-151.0,0.00020545,2]
[328885638,1717957849493,-253.8,0.00020635,5]
[328885639,1717957849502,-500.0,0.00020656,2]
[328885640,1717957849512,-3204.71,0.00020656,2]
[328885641,1717957849521,-1415.27,0.00020656,2]
[328885642,1717957849531,-1182.61087765,0.00020672,2]
[328885643,1717957849541,-151.0,0.00020821,2]
[328885644,1717957849550,-151.0,0.00020821,2]
[328885645,1717957849559,-193.79105,0.00020821,2]
[328885646,1717957849569,-151.0,0.00020821,2]
[328885647,1717957849578,-151.0,0.00020821,2]
[328885648,1717957849588,-500.0,0.0002093,2]
[328885649,1717957849600,-252.98402769,0.0002093,2]
[328885650,1717957849615,-2020.03174285,0.0002093,2]
[328885651,1717957849629,-497.72820551,0.0002093,2]
[328885652,1717957849662,-151.0,0.00019835,2]
[328885653,1717957849672,-151.0,0.0002,2]
[328885654,1717957849682,-433.96602395,0.0002093,2]
[328885655,1717957849691,-1415.27,0.0002093,2]
[328885656,1717957849701,-153.0,0.00020986,2]
[328885657,1717957849712,-153.0,0.00020986,2]
[328885658,1717957849722,-153.0,0.00020986,2]
[328885659,1717957849734,-153.0,0.00020986,2]
[328885660,1717957849744,-2420.59812447,0.00021,2]
[328885661,1717957849756,-1006.3,0.00021,2]
[328885662,1717957849770,-334.6730951,0.00021,2]
[328885663,1717957849781,-393.98121283,0.00021,2]
[328885664,1717957849790,-450.78893933,0.00021,2]
[328885667,1717957850688,-453.3972514,0.00021,2]
[328885668,1717957850698,-151.0,0.00021095,2]
[328885669,1717957850708,-262.315944,0.00021095,2]
[328885670,1717957850718,-151.0,0.00021156,2]
[328885671,1717957850727,-189.262475,0.00021156,2]
[328885672,1717957850737,-151.0,0.00021156,2]
[328885673,1717957850746,-500.0,0.00021204,2]
[328885674,1717957850755,-2730.77981914,0.00021204,2]
[328885675,1717957961023,155.0,9.999e-05,2]
[328885683,1717958573086,155.0,9.999e-05,2]
[328885809,1717959034194,-1562.95257595,0.00014999,2]
[328885811,1717959034207,-1005.97195991,0.00014999,2]
[328886458,1717959044263,-7972.28293987,0.00014999,2]
[328886461,1717959044273,-1302.68548416,0.00015,2]
[328886463,1717959044283,-2814.56742105,0.00015,2]
[328886465,1717959044293,-166.666666,0.00016986,2]
[328886467,1717959044303,-3906.3547381,0.00017009,2]
[328886468,1717959044313,-526.01666623,0.00017359,2]
[328886470,1717959044323,-257.72394334,0.00017359,2]
[328886471,1717959044332,-489.56838451,0.0001736,2]
[328886472,1717959044343,-7916.02523066,0.00017361,2]
[328886473,1717959044355,-200.15665021,0.00017368,2]
[328886474,1717959044367,-216.23913996,0.00017896,2]
[328886475,1717959044378,-10487.01203938,0.00017898,2]
[328886476,1717959044389,-2764.13862909,0.00018,2]
[328886477,1717959044400,-632.70327939,0.00018,2]
[328886478,1717959044411,-606.592145,0.000185,2]
[328886479,1717959044422,-730.95313621,0.00018637,2]
[328886480,1717959044432,-1801.54238186,0.000187,2]
[328886481,1717959044442,-500.0,0.00018737,2]
[328886482,1717959044453,-500.0,0.00018737,2]
[328886483,1717959044463,-1221.52,0.00018737,2]
[328886484,1717959044474,-212.47754313,0.00018737,2]
[328886485,1717959044485,-589.7,0.00018737,2]
[328886486,1717959044497,-190.4,0.00018832,3]
[328886487,1717959044507,-352.8029315,0.000189,2]
[328886488,1717959044518,-7267.44042319,0.00019,2]
[328886489,1717959044528,-163.07446836,0.00019,2]
[328886490,1717959044539,-500.0,0.00019011,2]
[328886491,1717959044550,-500.0,0.00019011,2]
[328886492,1717959044561,-1221.52,0.00019011,2]
[328886493,1717959044572,-589.7,0.00019011,2]
[328886494,1717959044582,-944.34699927,0.00019153,2]
[328886495,1717959044592,-173.871151,0.00019178,2]
[328886496,1717959044603,-730.9531362,0.00019268,2]
[328886497,1717959044613,-500.0,0.00019271,2]
[328886498,1717959044625,-500.0,0.00019271,2]
[328886499,1717959044637,-500.0,0.00019271,2]
[328886500,1717959044649,-500.87399301,0.00019271,2]
[328886501,1717959044661,-500.0,0.00019271,2]
[328886502,1717959044671,-193.74987896,0.00019271,2]
[328886503,1717959044681,-467.27665276,0.00019271,2]
[328886504,1717959044690,-500.0,0.00019285,2]
[328886505,1717959044701,-250.38,0.00019285,2]
[328886506,1717959044711,-1221.52,0.00019285,2]
[328886507,1717959044722,-589.7,0.00019285,2]
[328886508,1717959044734,-500.0,0.00019559,2]
[328886509,1717959044745,-1221.52,0.00019559,2]
[328886510,1717959044756,-589.7,0.00019559,2]
[328886511,1717959044767,-498.0,0.00019604,2]
[328886512,1717959044776,-150.0,0.00019604,2]
[328886513,1717959044786,-190.4,0.00019738,3]
[328886514,1717959044797,-500.0,0.00019833,2]
[328886515,1717959044807,-1221.52,0.00019833,2]
[328886516,1717959044817,-589.7,0.00019833,2]
[328886517,1717959044828,-730.9531362,0.00019899,2]
[328886518,1717959044838,-150.0027388,0.0002,3]
[328886519,1717959044849,-9500.51899678,0.0002,2]
[328886520,1717959044858,-932.35426985,0.0002,2]
[328886521,1717959044868,-1455.8319284,0.0002,3]
[328886522,1717959044878,-311.86775949,0.00020107,2]
[328886523,1717959044888,-1221.52,0.00020107,2]
[328886524,1717959044897,-589.7,0.00020107,2]
[328886525,1717959044907,-1221.52,0.00020381,2]
[328886526,1717959044921,-589.7,0.00020381,2]
[328886527,1717959044931,-153.1471546,0.00020438,2]
[328886528,1717959044941,-153.0,0.00020438,2]
[328886529,1717959044951,-211.5357135,0.00020438,2]
[328886530,1717959044963,-153.0,0.00020438,2]
[328886531,1717959044973,-153.0,0.00020438,2]
[328886532,1717959044985,-153.8050243,0.00020438,2]
[328886533,1717959044996,-730.9531362,0.00020529,2]
[328886534,1717959045006,-648.13054388,0.00020621,2]
[328886535,1717959045016,-190.4,0.00020644,5]
[328886536,1717959045026,-1221.52,0.00020655,2]
[328886537,1717959045035,-589.7,0.00020655,2]
[328886538,1717959045046,-500.0,0.00020867,2]
[328886539,1717959045057,-500.0,0.00020867,2]
[328886540,1717959045067,-456.39909891,0.00020867,2]
[328886541,1717959045078,-500.0,0.00020867,2]
[328886542,1717959045088,-500.0,0.00020867,2]
[328886543,1717959045099,-500.0,0.00020867,2]
[328886544,1717959045110,-268.99794645,0.00020867,2]
[328886545,1717959045120,-500.0,0.00020867,2]
[328886546,1717959045130,-430.67847094,0.00020867,2]
[328886547,1717959045140,-500.0,0.00020867,2]
[328886548,1717959045151,-553.35986852,0.00020867,2]
[328886549,1717959045161,-356.99903408,0.00020867,2]
[328886550,1717959045171,-500.0,0.00020867,2]
[328886551,1717959045181,-183.50567117,0.00020867,2]
[328886552,1717959045191,-500.0,0.00020867,2]
[328886553,1717959045201,-500.0,0.00020867,2]
[328886554,1717959045211,-500.0,0.00020867,2]
[328886555,1717959045221,-500.0,0.00020867,2]
[328886556,1717959045232,-500.0,0.00020867,2]
[328886557,1717959045242,-500.0,0.00020867,2]
[328886558,1717959045252,-500.0,0.00020867,2]
[328886559,1717959045263,-500.0,0.00020867,2]
[328886560,1717959045273,-500.0,0.00020867,2]
[328886561,1717959045283,-500.0,0.00020867,2]
[328886562,1717959045293,-500.0,0.00020867,2]
[328886563,1717959045303,-500.0,0.00020867,2]
[328886564,1717959045313,-500.0,0.00020867,2]
[328886565,1717959045324,-500.0,0.00020867,2]
[328886566,1717959045334,-500.0,0.00020867,2]
[328886567,1717959045344,-500.0,0.00020867,2]
[328886568,1717959045354,-500.0,0.00020867,2]
[328886569,1717959045364,-500.0,0.00020867,2]
[328886570,1717959045375,-500.0,0.00020867,2]
[328886571,1717959045386,-500.0,0.00020867,2]
[328886572,1717959045396,-500.0,0.00020867,2]
[328886573,1717959045407,-390.70998979,0.00020867,2]
[328886574,1717959045417,-500.0,0.00020867,2]
[328886575,1717959045428,-500.0,0.00020867,2]
[328886576,1717959045438,-500.0,0.00020867,2]
[328886577,1717959045449,-500.0,0.00020867,2]
[328886578,1717959045460,-500.0,0.00020867,2]
[328886579,1717959045471,-500.0,0.00020867,2]
[328886580,1717959045481,-500.0,0.00020867,2]
[328886581,1717959045492,-500.0,0.00020867,2]
[328886582,1717959045502,-500.0,0.00020867,2]
[328886583,1717959045513,-500.0,0.00020867,2]
[328886584,1717959045524,-500.0,0.00020867,2]
[328886585,1717959045535,-500.0,0.00020867,2]
[328886586,1717959045546,-500.0,0.00020867,2]
[328886587,1717959045556,-500.0,0.00020867,2]
[328886588,1717959045567,-500.0,0.00020867,2]
[328886589,1717959045577,-500.0,0.00020867,2]
[328886590,1717959045587,-500.0,0.00020867,2]
[328886591,1717959045597,-500.0,0.00020867,2]
[328886592,1717959045609,-500.0,0.00020867,2]
[328886593,1717959045619,-1221.52,0.00020929,2]
[328886594,1717959045629,-589.7,0.00020929,2]
[328886595,1717959045639,-1000.0,0.00020978,2]
[328886596,1717959045649,-471.08100537,0.00021,2]
[328886597,1717959045659,-393.98121283,0.00021,2]
[328886598,1717959045680,-1000.0,0.00021021,2]
[328886599,1717959045691,-3381.45518195,0.00021048,2]
[328886601,1717959045701,-1034.12349277,0.00021093,2]
[328886602,1717959045712,-160.0,0.000212,2]
[328886603,1717959045723,-1221.52,0.00021203,2]
[328886604,1717959045734,-589.7,0.00021203,2]
[328886605,1717959045744,-9573.9258854,0.00021204,7]
[328886606,1717959045754,-155.0,0.00021204,2]
[328886607,1717959045766,-432.16814441,0.00021204,2]
[328886608,1717959045776,-13480.46429962,0.00021204,2]
[328886609,1717959045787,-75753.44922861,0.00021204,2]
[328886610,1717959045804,-268.03306175,0.00021204,2]
[328886611,1717959045817,-2560.50547569,0.00021204,2]
[328886612,1717959045830,-690.8836,0.00021204,2]
[328886613,1717959045849,-426.67064563,0.0002116,2]
[328886614,1717959045861,-304.28249057,0.0002116,2]
[328886615,1717959045871,-15338.1451211,0.00021204,2]
[328886616,1717959045884,-4853.915607,0.00021204,2]
[328886617,1717959045901,-24961.21763876,0.00021204,2]
[328886618,1717959045912,-197.7400887,0.0002126,2]
[328886619,1717959045925,-153.0,0.0002126,2]
[328886620,1717959045935,-153.0,0.0002126,2]
[328886621,1717959045945,-1221.52,0.00021477,2]
[328886622,1717959045955,-589.7,0.00021477,2]
[328886623,1717959045965,-190.4,0.0002155,5]
[328886624,1717959045976,-621.40652719,0.00021652,2]
[328886625,1717959045986,-1221.52,0.00021751,2]
[328886626,1717959045999,-589.7,0.00021751,2]
[328886627,1717959046010,-2000.0,0.000219,2]
[328886628,1717959046021,-166.666666,0.00021918,2]
[328886629,1717959046032,-778.63806935,0.00022,7]
[328886634,1717959046330,-6933.6,0.00022,7]
[328886641,1717959046388,-1950.63249887,0.00022,7]
[328886643,1717959046398,-5116.66587248,0.00022,2]
[328886645,1717959046414,-6929.38881723,0.00022,2]
[328886791,1717959048015,-500.0,0.00020867,2]
[328886792,1717959048028,-153.16142419,0.00020867,2]
[328886793,1717959048039,-500.0,0.00020867,2]
[328886794,1717959048050,-500.0,0.00020867,2]
[328886795,1717959048061,-500.0,0.00020867,2]
[328886796,1717959048071,-500.0,0.00020867,2]
[328886797,1717959048081,-5120.56495983,0.00022,2]
[328886798,1717959136320,213.03415827,9.999e-05,2]
[328886799,1717959157799,155.0,9.999e-05,2]
[328886800,1717959190779,200.39532959,9.999e-05,2]
[328886803,1717959644363,213.03415827,9.999e-05,2]
[328886836,1717959935442,378.13191327,9.999e-05,2]
[328886934,1717960233534,-1302.68548416,0.00015,2]
[328886936,1717960233545,-162.5158596,0.00015882,2]
[328886938,1717960233555,-5946.56826491,0.00015938,2]
[328886941,1717960233568,-1833.85,0.00015938,2]
[328886943,1717960233581,-636.9375,0.00015938,2]
[328887148,1717960245281,-118.64489569,0.00015938,2]
[328887150,1717960245295,-2363.0776139,0.00016016,2]
[328887152,1717960245305,-307.7642272,0.00016087,2]
[328887153,1717960245318,-156.47381181,0.00016522,2]
[328887155,1717960245331,-166.666666,0.00016986,2]
[328887157,1717960245342,-214.49255988,0.00017357,2]
[328887159,1717960245352,-200.82026134,0.00017357,2]
[328887160,1717960245364,-5274.25973485,0.00017358,2]
[328887161,1717960245374,-4607.59496459,0.00017359,2]
[328887163,1717960245425,-3670.09999996,0.00017359,2]
[328887165,1717960245438,-2000.74139414,0.00017359,2]
[328887167,1717960245448,-1041.83385212,0.00017798,2]
[328887168,1717960245459,-10487.01203938,0.00017898,2]
[328887170,1717960245470,-176.73512618,0.00017898,2]
[328887171,1717960245480,-497.29441536,0.00017898,2]
[328887172,1717960245491,-239.00438275,0.00017899,2]
[328887173,1717960245501,-429.52,0.00017999,2]
[328887174,1717960245513,-610.76,0.00017999,2]
[328887175,1717960245524,-218.14202897,0.00017999,2]
[328887176,1717960245534,-500.0,0.00017999,2]
[328887177,1717960245544,-649.31586579,0.00018,2]
[328887178,1717960245555,-2764.13862909,0.00018,2]
[328887179,1717960245565,-239.00438275,0.00018149,2]
[328887180,1717960245575,-610.76,0.00018273,2]
[328887181,1717960245585,-500.0,0.00018273,2]
[328887182,1717960245595,-239.00438275,0.000184,2]
[328887183,1717960245605,-606.592145,0.000185,2]
[328887184,1717960245616,-610.76,0.00018547,2]
[328887185,1717960245627,-500.0,0.00018547,2]
[328887186,1717960245638,-239.00438275,0.0001865,2]
[328887187,1717960245649,-938.60358095,0.000187,2]
[328887188,1717960245659,-494.83622595,0.00018737,2]
[328887190,1717960245669,-610.76,0.00018821,2]
[328887191,1717960245679,-500.0,0.00018821,2]
[328887192,1717960245690,-1037.20517892,0.000189,2]
[328887194,1717960245701,-239.00438275,0.000189,2]
[328887196,1717960245711,-2236.89031574,0.00019,7]
[328887199,1717960245726,-2550.07262696,0.00019,7]
[328887201,1717960245737,-9085.15844302,0.00019,7]
[328887203,1717960245747,-2114.45629692,0.00019,2]
[328887205,1717960245760,-89176.55362667,0.00019,2]
[328887262,1717960246375,-21393.78875354,0.00019,2]
[328887264,1717960246388,-267.7552,0.00019,2]
[328887267,1717960246403,-408.1224925,0.00019,2]
[328887297,1717960246689,-438.90033595,0.00019,2]
[328887313,1717960246956,-2171.50161277,0.00019,2]
[328887314,1717960246969,-53491.37744052,0.00019,2]
[328887315,1717960246981,-1142.97022287,0.00019,2]
[328887316,1717960246994,-69246.88487861,0.00019,2]
[328887317,1717960247006,-6038.00782953,0.00019,2]
[328887325,1717960247849,-45794.64439335,0.00019,2]
[328887326,1717960247861,-7267.44042319,0.00019,2]
[328887327,1717960247871,-163.07446836,0.00019,2]
[328887328,1717960247881,-610.76,0.00019095,2]
[328887329,1717960247891,-500.0,0.00019095,2]
[328887330,1717960247902,-572.65858517,0.00019178,2]
[328887331,1717960247912,-497.98270328,0.00019178,2]
[328887332,1717960247922,-169.98303758,0.00019178,2]
[328887333,1717960247932,-500.0,0.00019178,2]
[328887334,1717960247943,-395.96529683,0.00019178,2]
[328887335,1717960247954,-500.0,0.00019178,2]
[328887336,1717960247964,-500.0,0.00019178,2]
[328887337,1717960247974,-500.0,0.00019178,2]
[328887338,1717960247984,-500.0,0.00019178,2]
[328887339,1717960247994,-500.0,0.00019178,2]
[328887340,1717960248004,-500.0,0.00019178,2]
[328887341,1717960248014,-500.0,0.00019178,2]
[328887342,1717960248023,-500.0,0.00019178,2]
[328887343,1717960248032,-500.0,0.00019178,2]
[328887344,1717960248041,-500.0,0.00019178,2]
[328887345,1717960248054,-451.23843732,0.00019178,2]
[328887346,1717960248064,-445.89741172,0.00019178,2]
[328887347,1717960248074,-500.0,0.00019178,2]
[328887348,1717960248083,-500.0,0.00019178,2]
[328887349,1717960248093,-500.0,0.00019178,2]
[328887350,1717960248103,-500.0,0.00019178,2]
[328887351,1717960248114,-500.0,0.00019178,2]
[328887352,1717960248124,-500.0,0.00019178,2]
[328887353,1717960248134,-500.0,0.00019178,2]
[328887354,1717960248144,-500.0,0.00019178,2]
[328887355,1717960248153,-500.0,0.00019178,2]
[328887356,1717960248162,-500.0,0.00019178,2]
[328887357,1717960248303,-500.0,0.00019178,2]
[328887358,1717960248317,-346.56708774,0.00019178,2]
[328887359,1717960248331,-500.0,0.00019178,2]
[328887360,1717960248341,-500.0,0.00019178,2]
[328887361,1717960248351,-500.0,0.00019178,2]
[328887362,1717960248364,-500.0,0.00019178,2]
[328887363,1717960248374,-500.0,0.00019178,2]
[328887364,1717960248383,-500.0,0.00019178,2]
[328887365,1717960248393,-500.0,0.00019178,2]
[328887366,1717960248403,-186.92474368,0.00019178,2]
[328887367,1717960248414,-500.0,0.00019178,2]
[328887368,1717960248424,-500.0,0.00019178,2]
[328887369,1717960248434,-500.0,0.00019178,2]
[328887370,1717960248444,-500.0,0.00019178,2]
[328887371,1717960248454,-500.0,0.00019178,2]
[328887372,1717960248464,-500.0,0.00019178,2]
[328887373,1717960248473,-500.0,0.00019178,2]
[328887374,1717960248483,-500.0,0.00019178,2]
[328887375,1717960248493,-163.03073919,0.00019178,2]
[328887376,1717960248503,-500.0,0.00019178,2]
[328887377,1717960248512,-500.0,0.00019178,2]
[328887378,1717960248522,-500.0,0.00019178,2]
[328887379,1717960248532,-500.0,0.00019178,2]
[328887380,1717960248542,-500.0,0.00019178,2]
[328887381,1717960248552,-500.0,0.00019178,2]
[328887382,1717960248561,-500.0,0.00019178,2]
[328887383,1717960248570,-500.0,0.00019178,2]
[328887384,1717960248579,-500.0,0.00019178,2]
[328887385,1717960248590,-500.0,0.00019178,2]
[328887386,1717960248600,-500.0,0.00019178,2]
[328887387,1717960248610,-500.0,0.00019178,2]
[328887388,1717960248620,-500.0,0.00019178,2]
[328887389,1717960248630,-500.0,0.00019178,2]
[328887390,1717960248641,-500.0,0.00019178,2]
[328887391,1717960248651,-500.0,0.00019178,2]
[328887392,1717960248661,-500.0,0.00019178,2]
[328887393,1717960248670,-500.0,0.00019178,2]
[328887394,1717960248680,-500.0,0.00019178,2]
[328887395,1717960248689,-500.0,0.00019178,2]
[328887396,1717960248698,-500.0,0.00019178,2]
[328887397,1717960248708,-500.0,0.00019178,2]
[328887398,1717960248718,-500.0,0.00019178,2]
[328887399,1717960248728,-500.0,0.00019178,2]
[328887400,1717960248738,-500.0,0.00019178,2]
[328887401,1717960248748,-500.0,0.00019178,2]
[328887402,1717960248758,-500.0,0.00019178,2]
[328887403,1717960248767,-500.0,0.00019178,2]
[328887404,1717960248779,-500.0,0.00019178,2]
[328887405,1717960248789,-500.0,0.00019178,2]
[328887406,1717960248799,-500.0,0.00019178,2]
[328887407,1717960248810,-500.0,0.00019178,2]
[328887408,1717960248820,-500.0,0.00019178,2]
[328887409,1717960248829,-500.0,0.00019178,2]
[328887410,1717960248840,-500.0,0.00019178,2]
[328887411,1717960248850,-500.0,0.00019178,2]
[328887412,1717960248861,-500.0,0.00019178,2]
[328887413,1717960248870,-500.0,0.00019178,2]